Cogmind - Beta 16 @@@ ROGUE MODE // 2025.10.22 @ 04:15:15 Player: time Result: Destroyed by G-34 Mercenary with Small Laser Performance ------------- Evolutions (1) 500 Regions Visited (3) 600 Robots Destroyed (12) 60 Value Destroyed (214) 214 Prototype IDs (0) 0 Alien Tech Used (0) 0 Bonus (0) 0 TOTAL SCORE: 1374 Bonus ------- None Cogmind --------- Core Integrity 0/400 Matter 64/300 Energy 68/100 System Corruption 0% Temperature Cool (6) Movement Core (50) Location -9/Materials Parts ------- > --- POWER (1) -------- (None) > --- PROPULSION (3) --- (None) > --- UTILITY (3) ------ (None) > --- WEAPON (2) ------- (None) > --- INVENTORY (5) ---- Compact Wheel Medium Laser Peak State ------------ > --- POWER ------------ (None) > --- PROPULSION ------- Aluminum Leg Compact Wheel VTOL Module > --- UTILITY ---------- (None) > --- WEAPON ----------- Autogun Autogun > --- INVENTORY -------- Medium Laser Light Assault Rifle [Rating: 8] Favorites ----------- Power Light Ion Engine Engine Light Ion Engine Propulsion Aluminum Leg Leg Aluminum Leg Wheel Compact Wheel Flight Unit VTOL Module Utility Small Storage Unit Device Seismic Detector Storage Small Storage Unit Processor Signal Interpreter Weapon Light Assault Rifle Energy Gun Medium Laser Energy Cannon Beam Cannon Ballistic Gun Light Assault Rifle Build | -11 -10 -10 -9 ------- Run | Yrd Mat Min Mat Slots Evolved 2 | . . . 2 Power . | . . . . Propulsion 1 | . . . 1 Utility 1 | . . . 1 Weapon . | . . . . Parts Attached 19 | 7 3 1 8 Power 2 | 1 . 1 . Engine 2 | 1 . 1 . Core . | . . . . Reactor . | . . . . Propulsion 6 | 2 . . 4 Treads . | . . . . Leg 3 | 2 . . 1 Wheel 1 | . . . 1 Hover . | . . . . Flight 2 | . . . 2 Utility 3 | 2 1 . . Device 1 | 1 . . . Storage 1 | 1 . . . Processor 1 | . 1 . . Hackware . | . . . . Protection . | . . . . Artifact . | . . . . Weapon 8 | 2 2 . 4 Energy Gun 3 | 1 . . 2 Energy Cannon 1 | . 1 . . Ballistic Gun 4 | 1 1 . 2 Ballistic Cannon . | . . . . Launcher . | . . . . Special Weapon . | . . . . Impact Weapon . | . . . . Slashing Weapon . | . . . . Piercing Weapon . | . . . . Special Melee Weapon . | . . . . Unidentified Prototypes . | . . . . Parts Lost 10 | . 2 1 7 Power 1 | . 1 . . Propulsion 4 | . . 1 3 Utility 1 | . 1 . . Weapon 4 | . . . 4 Highest Loss Streak 7 | . 1 1 7 To Critical Strikes . | . . . . Average Backups 3 | 2 6 7 3 Power . | . 1 . . Propulsion 1 | . 2 3 1 Utility . | . . . . Weapon 1 | . 2 4 2 Tool/Special . | . . . . Unused Backups 2 | . . 1 1 Power . | . . . . Propulsion 1 | . . 1 . Utility . | . . . . Weapon 1 | . . . 1 Tool/Special . | . . . . Average Slot Usage (%) 84 | . 100 100 26 Engine 11 | . 14 14 . Leg 22 | . 28 28 2 Flight 1 | . . . 9 Device 5 | . 9 . . Storage 11 | . 14 14 . Processor 5 | . 4 14 . Energy Gun 4 | . 7 . 1 Energy Cannon 6 | . 6 14 . Ballistic Gun 13 | . 14 14 10 Peak Build Rating 8 | 7 7 7 8 Average Rating 6 | 6 6 6 4 On Entrance 3 | . 7 6 . Avg Prop Armor Cover (%) . | . . . . Naked Turns 36 | . . 5 31 Heaviest Build 15 | 12 13 15 6 Greatest Support 20 | 20 20 20 16 Greatest Overweight (x) 1 | . . . 1 Average Overweight (x) . | . . . . Largest Inventory Capacity 8 | 8 8 8 5 Average Capacity 7 | 7 8 7 5 Most Carried 8 | 3 8 7 5 Average Carried 3 | 2 6 6 3 Final Capacity 8 | 8 8 5 5 Final Carried 8 | 3 8 5 2 Class Distribution -------------------- 100% | Mutant Dominant Class ---------------- Mutant | -10/Materials Mutant | -10/Mines Mutant | -9/Materials Resources | -11 -10 -10 -9 ----------- Run | Yrd Mat Min Mat Matter Collected 318 | 273 45 . . Remotely . | . . . . Salvage Created 404 | 122 159 . 123 Parts 19 | 3 7 . 9 Haulers Intercepted 1 | . 1 . . Recyclers Shooed . | . . . . Parts Field Recycled . | . . . . Retrieved Matter . | . . . . Parts Self-Destructed . | . . . . Prevented . | . . . . Parts Restored . | . . . . Kills | -11 -10 -10 -9 ------- Run | Yrd Mat Min Mat Combat Hostiles Destroyed 9 | . 4 . 5 Guns 7 | . 2 . 5 Cannons 2 | . 2 . . Classes Destroyed 5 | 2 3 . . Tunneler 1 | 1 . . . Hauler 1 | . 1 . . Recycler 1 | 1 . . . Swarmer 5 | . 2 . 3 Grunt 4 | . 2 . 2 Best Kill Streak 5 | 2 2 . 5 Combat Bots Only 5 | . 2 . 5 Max Kills in Single Turn 1 | 1 1 . 1 Gunslinging . | . . . . Exploded . | . . . . Melee . | . . . . Uniques/NPCs Destroyed . | . . . . Combat | -11 -10 -10 -9 -------- Run | Yrd Mat Min Mat Hostile Shots Fired 157 | . 55 4 98 Missed 39 | . 12 . 27 Hits 118 | . 43 4 71 Projectile 118 | . 43 4 71 AOE 4 | . . 4 . Critical Strikes 2 | . . . 2 Damage Taken 1452 | . 393 157 902 Core 618 | . 112 101 405 Absorbed by Shields . | . . . . Core Remaining (%) 57 | 100 . 14 . Volleys Fired 58 | 3 32 . 23 Largest 2 | 2 2 . 2 Hottest 80 | 70 80 . 63 Shots Fired 110 | 6 64 . 40 Gun 94 | 6 48 . 40 Cannon 16 | . 16 . . Launcher . | . . . . Special . | . . . . Kinetic 71 | 3 32 . 36 Thermal 35 | 3 32 . . Explosive . | . . . . Electromagnetic 4 | . . . 4 Robot Hit Streak 9 | 4 9 . 5 Robot Miss Streak 5 | 1 5 . 2 Penetration Max . | . . . . Secondary Targets 2 | . . . 2 Max Gunslinging Chain 1 | . . . 1 Shots Hit Robots 65 | 4 35 . 26 Core Hits 17 | 3 7 . 7 Critical Kills . | . . . . Critical Parts Destroyed 1 | . . . 1 Critical Strikes 2 | . 1 . 1 Burn 1 | . 1 . . Destroy 1 | . . . 1 Melee Attacks . | . . . . Impact . | . . . . Slashing . | . . . . Piercing . | . . . . Sneak Attacks . | . . . . Combat Hostiles . | . . . . Follow-up Attacks . | . . . . Damage Inflicted 833 | 37 392 . 404 Guns 655 | 37 217 . 401 Cannons 175 | . 175 . . Explosions . | . . . . Melee . | . . . . Ramming 3 | . . . 3 Kinetic 471 | 13 106 . 352 Thermal 310 | 24 286 . . Explosive . | . . . . Electromagnetic 49 | . . . 49 Impact . | . . . . Slashing . | . . . . Piercing . | . . . . Highest Corruption . | . . . . Average Corruption . | . . . . Corruption Purged . | . . . . Corruption Blocked . | . . . . Overload Shots . | . . . . Overflow Damage 46 | . 46 . . Projectiles 46 | . 46 . . Explosions . | . . . . Melee . | . . . . Knockbacks . | . . . . Impact . | . . . . Kinetic . | . . . . Secondary . | . . . . Self-Inflicted Damage 1 | . . . 1 Shots . | . . . . Rammed 1 | . . . 1 Targets Rammed 1 | . . . 1 Kicked . | . . . . Crushed . | . . . . Highest Temperature 180 | 40 180 . 39 Average Temperature 52 | 19 63 . 10 Received Heat Transfer 495 | . 78 . 417 Siege Activations . | . . . . Martial Activations . | . . . . Shielding Activations . | . . . . Robots Disrupted . | . . . . Combat Hostiles . | . . . . Robots Corrupted . | . . . . Combat Hostiles . | . . . . Parts Fried . | . . . . Impact Corruptions . | . . . . Robots Melted . | . . . . Combat Hostiles . | . . . . Parts Melted . | . . . . Heat Transferred 851 | 74 777 . . Parts Sabotaged . | . . . . Parts Stolen . | . . . . Parts Stripped . | . . . . Power Chain Reactions . | . . . . Alert | -11 -10 -10 -9 ------- Run | Yrd Mat Min Mat Maximum Alert Level . | . . . . Low Security (%) 100 | 100 100 100 100 Level 1 . | . . . . Level 2 . | . . . . Level 3 . | . . . . Level 4 . | . . . . Level 5 . | . . . . High Security . | . . . . Max Security . | . . . . Peak Influence 170 | 10 65 . 170 Initial . | . . . . Average 11 | . 25 . 75 Influence Increases 406 | 10 171 . 225 Destroy 0b10 Robot/C 180 | . 80 . 100 Destroy 0b10 Robot/NC 15 | 10 5 . . Destroy Leader 42 | . 22 . 20 Successful Hack 19 | . 19 . . Partial Spotted 15 | . . . 15 Lose Combat Pursuer 135 | . 45 . 90 Influence Decreases 296 | 10 171 . 115 Time Decay 210 | 10 155 . 45 Lost Part 86 | . 16 . 70 Squads Dispatched 5 | . 4 . 1 Investigation 2 | . 1 . 1 Extermination . | . . . . Reinforcement 3 | . 3 . . Assault . | . . . . Garrison . | . . . . Intercept . | . . . . Searches Triggered . | . . . . Construction Impeded . | . . . . Haulers Reinforced . | . . . . Active Scanning Responses . | . . . . Cargo Convoy Interrupts . | . . . . Stealth | -11 -10 -10 -9 --------- Run | Yrd Mat Min Mat Distress Signals 2 | . 1 . 1 Communications Jammed . | . . . . Distress Signals . | . . . . Times Spotted 34 | . 12 4 18 Peak Tracking Total 9 | . 4 2 9 Tactical Retreats 4 | . 2 . 2 Traps | -11 -10 -10 -9 ------- Run | Yrd Mat Min Mat Traps Triggered 2 | . 1 . 1 Indirectly . | . . . . Trap Hack Attempts . | . . . . Triggered . | . . . . Disarmed . | . . . . Reprogrammed . | . . . . Reused . | . . . . Traps Extracted . | . . . . Installed . | . . . . Triggered . | . . . . Machines | -11 -10 -10 -9 ---------- Run | Yrd Mat Min Mat Machines Disabled . | . . . . Max in Single Turn . | . . . . Machines Repaired . | . . . . Machines Dismantled . | . . . . Machines Sabotaged . | . . . . Overloaded Fab Kills . | . . . . Hacking | -11 -10 -10 -9 --------- Run | Yrd Mat Min Mat Machines Accessed 4 | . 4 . . Terminals 4 | . 4 . . Fabricators . | . . . . Repair Stations . | . . . . Recycling Units . | . . . . Scanalyzers . | . . . . Garrison Access . | . . . . Total Hacks 12 | . 12 . . Successful 4 | . 4 . . Failed 8 | . 8 . . Catastrophic 3 | . 3 . . Database Lockouts . | . . . . Manual 10 | . 10 . . Terminals 12 | . 12 . . Fabricators . | . . . . Repair Stations . | . . . . Recycling Units . | . . . . Scanalyzers . | . . . . Garrison Access . | . . . . Terminal Hacks 1 | . 1 . . Branch Access Points 1 | . 1 . . Fabricator Hacks . | . . . . Repair Station Hacks . | . . . . Recycling Unit Hacks . | . . . . Scanalyzer . | . . . . Garrison Access Hacks . | . . . . Unauthorized Hacks 3 | . 3 . . Terminals 3 | . 3 . . Botnet 3 | . 3 . . Fabricators . | . . . . Repair Stations . | . . . . Recycling Units . | . . . . Scanalyzers . | . . . . Garrison Access . | . . . . Data Cores Recovered . | . . . . Used . | . . . . Hacking Detections 4 | . 4 . . Full Trace Events . | . . . . Feedback Events . | . . . . Feedback Blocked . | . . . . Robot Schematics Acquired . | . . . . Robots Built . | . . . . Authchips . | . . . . Time . | . . . . Total Robot Build Rating . | . . . . Part Schematics Acquired . | . . . . Parts Built . | . . . . Authchips . | . . . . Time . | . . . . Total Part Build Rating . | . . . . Part Studies Acquired . | . . . . Parts Repaired . | . . . . Time . | . . . . Parts Recycled . | . . . . Recycled Matter . | . . . . Retrieved Matter . | . . . . Retrieved Components . | . . . . Parts Scanalyzed . | . . . . Part Schematics Acquired . | . . . . Parts Damaged . | . . . . Bothacking | -11 -10 -10 -9 ------------ Run | Yrd Mat Min Mat Used RIF Installer . | . . . . Robots Hacked . | . . . . Non-combat . | . . . . Combat . | . . . . Robot Hacks Applied . | . . . . Relay Couplers Released . | . . . . Fabnet Peak Effective % . | . . . . Robots Rewired . | . . . . Allies Hacked . | . . . . Hacks Repelled . | . . . . Allies | -11 -10 -10 -9 -------- Run | Yrd Mat Min Mat Total Allies . | . . . . Largest Group . | . . . . Highest-Rated Group . | . . . . Highest-Rated Ally . | . . . . Total Orders . | . . . . Ally Attacks . | . . . . Total Damage . | . . . . Kills . | . . . . Allies Corrupted . | . . . . Allies Melted . | . . . . Intel | -11 -10 -10 -9 ------- Run | Yrd Mat Min Mat Active Infowar (turns) 1357 | 1089 268 . . Seismic 1357 | 1089 268 . . Robot Analysis Total . | . . . . Derelict Logs Recovered . | . . . . Drone Launches . | . . . . Drone Recoveries . | . . . . Exploration | -11 -10 -10 -9 ------------- Run | Yrd Mat Min Mat Turns Passed 1796 | 1142 421 95 138 Spaces Moved 646 | 157 262 80 147 Core 77 | 5 . 10 62 Treads . | . . . . Legs 484 | 152 262 70 . Wheels 1 | . . . 1 Hover . | . . . . Flight 84 | . . . 84 Fastest Speed 34 | 50 120 50 34 Average Speed 100 | 117 120 111 41 Slowest Speed 120 | 120 120 120 100 Overloaded Moves . | . . . . Propulsion Burnouts . | . . . . Robots Hopped 2 | . . . 2 Potential Cave-ins . | . . . . Cave-ins Triggered . | . . . . Exploration Rate (%) 26 | 22 46 22 15 Regions Visited 3 Branch Regions 1 Pre-discovered Areas . | . . . . Known Exits Taken 2 | . 1 1 . Unknown Exits Taken 1 | 1 . . . Scrap Searched . | . . . . Spaces Dug . | . . . . Terrain Destroyed . | . . . . Melee . | . . . . Projectile . | . . . . AOE . | . . . . Terrain Rammed . | . . . . Walls Destroyed . | . . . . Machines Disabled . | . . . . Actions | -11 -10 -10 -9 --------- Run | Yrd Mat Min Mat Total 1690 | 1105 311 85 189 Wait 950 | 936 9 5 . Move 639 | 156 261 79 143 Hop 2 | . . . 2 Pick Up 7 | 3 4 . . Fast Attach 14 | 7 2 . 5 Attach 10 | . 1 1 8 Detach 8 | . 2 . 6 Swap . | . . . . Drop 1 | . . . 1 Fire 58 | 3 32 . 23 Melee . | . . . . Ram 1 | . . . 1 Kick . | . . . . Crush . | . . . . Escape Stasis . | . . . . Rewire . | . . . . Trap . | . . . . Miscellaneous . | . . . . Route ------- -11/Scrapyard -10/Materials (discovered 3 exits: *Mat / *Min x2) -10/Mines -9/Materials History --------- Turn | Location | Event 5 | -11/Scrapyard | Discovered new exit (range 13) 1143 | -11/Scrapyard | Entered Materials 1144 | -10/Materials | Build established: Mutant 1361 | -10/Materials | Discovered new exit (range 8) 1447 | -10/Materials | Identified exit to Materials 1521 | -10/Materials | Identified exit to Mines 1564 | -10/Materials | Entered Mines 1606 | -10/Mines | Discovered exit to Materials (range 13) 1643 | -10/Mines | Assembled infested the area 1648 | -10/Mines | Assisted by a Guerilla fighting off Assembled 1654 | -10/Mines | Core integrity fell below 50% 1654 | -10/Mines | Released all parts (6) 1659 | -10/Mines | Entered Materials 1659 | -9/Materials | Evolved 2 slots: Propulsion x1, Utility x1 1788 | -9/Materials | Core integrity fell below 50% 1794 | -9/Materials | Core integrity fell below 20% 1797 | -9/Materials | Destroyed by G-34 Mercenary with Small Laser Last Messages --------------- 01735_ R-06 Scavenger collects Lgt. Ion Engine. 01737_ K-01 Serf collects debris. 01738_ W-16 Scout sends out distress signal. 01740_ K-01 Serf collects debris. 01742_ G-47 Trooper destroyed. 01742_ Switching to secondary target: Y-45 Defender. 01742_ Autogun destroyed. 01743_ K-01 Serf cleans the Electrolysis Chamber. 01745_ Acquired Flight Unit. 01746_ Aluminum Leg destroyed. 01770_ Acquired EM Pulse Gun. 01773_ Flight Unit destroyed. 01777_ VTOL Module destroyed. 01777_ G-34 Mercenary IFF system glitched. 01779_ Lgt. Assault Rifle destroyed. 01787_ EM Pulse Gun destroyed. 01787_ U-05 Engineer builds a Door. 01791_ Critical hit (Burn: +37). 01792_ Autogun destroyed. 01793_ Slammed into U-05 Engineer. Map ----- +----------------------------------------------------+ | ??????????????????????????????????????? | | ??????????????????????????????????????? | | ??????????????????????????????????????? | | ??????????????????????????????????????? | | ??????????????????????????????????????? | | ??????????????????????????????#####???? | | ??????????????????????????????# #???? | | ??????????????????????????????# #???? | | ??????????????????????????????# #???? | | ??????????????????????????????# #???? | | ??????????????????????????????# #???? | | ??????????????????????????????# #???? | | ??????????????????????????????# #???? | | ?????????????????????######???# #???? | | ???###+#?????????????# ???# #???? | | ???# ##+###??????# ???# #???? | | ### #??????# ?# #???? | | #??????# """ # #???? | | ???# #??????# """""# #???? | | ???# ##/#+#####??# """""# #???? | | ?????????# #??# """""# #???? | | ?????????# """ #??# """ # #???? | | ?????????# """ #??# # #???? | | ?????????# """ #??######+###g #???? | | ?????????# ###### Ygg #???? | | ?????????# #/[ # @ g #???? | | ???????##########+# # mgg #???? | | ???????? ??# # # w #####Y####?? | | ????????? ?# + # u # #?? | | ?????????""" ?# # = # # #?? | | ?????????"""" # ###### # [ #?? | | ????????""""" # # [[ #?? | | ????????""""" + # [[ #?? | | ???????# """ # # #?? | | ???????# # ######## #?? | | ???????# ?# # =! # #?? | | ????###########?# # =! [ # #?? | | ????# ####### # ## #######?? | | ????# # ###????????? | | ????+ " %+ =""" #??????????? | | ????# %#* """ #??????????? | | ????# ####### !%#[%""" #??????????? | | ????## ???????# *#*%[ #??????????? | | ?????# ????????# ####+###??????????? | | ???? ?????????# #### ###??????????? | | ?? ??????????# #??????????? | | ? ????????????# +??????????? | | ? ?????????????# #??????????? | | ????????????????############??????????? | | ??????????????????????????????????????? | +----------------------------------------------------+ Best States ------------- Heat Dissipation 28 Energy Generation 10 Energy Capacity 250 Matter Stores 300 Matter Capacity 300 Sight Range 16 Terrain Scan Density 10 Evasion (%) 63 Item Schematics ----------------- None Robot Schematics ------------------ None Fabricated ------------ Nothing Repaired ---------- Nothing Studied --------- None Alien Tech Used ----------------- None Achievements -------------- Live, Flee, And Rebuild Challenges ------------ None Game ------ Seed PiercingTerrainFrame Manual? 0 Play Time 00:12:15 Cumulative 23.5 hours Start 2025.10.22 @ 04:05:57 End 2025.10.22 @ 04:15:15 Sessions 1 Manual Loads 0 Difficulty Rogue Special Mode None Game No. 37 Rogue 14 Adventurer 18 Explorer 5 Win Type - Total 0 Types 0/0/0/0/0/0/0/0/0/0 Lore% 16 Gallery% 35 Achievement% 19 Wizard Run 0 Options --------- Layout 0 ASCII 0 Keyboard 1 Movement Numpad Keybinds 0 Fullscreen 1 Font 18/X11 Map View 76x50 Zoom Use 0% Tactical HUD 1 Map Filters NONE Filters NONE Steam 1 RUN: 73c424d7-3739-4eee-97ff-fa395999b15e